bitfinex/quotes_ETHUSD_20251012
["timestamp","ask_amount","ask_price","bid_price","bid_amount"]
[1760243856476,0.001,3816.7,3816.6,0.6336]
[1760243856651,0.001,3816.7,3816.6,3.2537331]
[1760243857172,0.001,3816.7,3816.6,0.6336]
[1760243857877,0.001,3816.7,3816.6,3.0884331]
[1760243858079,0.001,3816.7,3816.6,4.09423641]
[1760243858276,0.001,3816.7,3816.6,0.6336]
[1760243858464,0.001,3816.7,3816.6,3.2537331]
[1760243858778,0.001,3816.7,3816.6,3.7220331]
[1760243859171,0.001,3816.7,3816.6,5.6420331]
[1760243859346,0.001,3816.7,3816.6,3.0219]
[1760243859765,0.001,3816.7,3816.6,5.7724331]
[1760243861144,0.001,3816.7,3816.6,1.92]
[1760243861356,0.001,3816.7,3816.3,1.92]
[1760243861649,0.001,3816.7,3816.4,0.6336]
[1760243862076,0.001,3816.7,3816.5,1.92]
[1760243862479,0.001,3816.7,3816.4,2.5536]
[1760243862979,0.001,3816.7,3816.2,0.6336]
[1760243863180,0.001,3816.7,3816.6,3.2537331]
[1760243863647,0.001,3816.7,3816.6,3.7073331]
[1760243863847,0.001,3816.7,3816.6,4.34008904]
[1760243864205,0.001,3816.7,3816.6,6.26008904]
[1760243867087,0.001,3817.8,3817.7,3.25297815]
[1760243867462,0.001,3817.8,3817.7,3.70657815]
[1760243871168,0.001,3817.8,3817.7,3.83697815]
[1760243872400,0.001,3817.8,3817.7,4.48262336]
[1760243874628,0.001,3817.8,3817.7,3.83697815]
[1760243875924,0.001,3817.8,3817.7,3.85027815]
[1760243876126,0.001,3817.8,3817.7,0.1304]
[1760243876291,0.001,3817.8,3816.6,3.25288823]
[1760243876292,0.001,3817.8,3817.4,0.1304]
[1760243877831,0.001,3817.8,3816.8,2.61998228]
[1760243878039,0.5676,3817.7,3817.0,0.1304]
[1760243878313,0.34190285,3817.6,3816.1,0.1444]
[1760243878531,0.1304,3817.2,3816.6,0.1304]
[1760243878822,2.75013479,3817.2,3816.6,0.1304]
[1760243878977,1.92,3817.1,3817.0,0.002]
[1760243879382,0.1304,3817.2,3817.0,0.002]
[1760243880178,0.4372,3817.1,3817.0,0.002]
[1760243880382,2.86793562,3817.1,3817.0,0.002]
[1760243881180,3.56772551,3817.1,3817.0,0.002]
[1760243882093,0.51073562,3817.1,3817.0,0.002]
[1760243882299,1.92,3817.3,3817.0,0.002]
[1760243882897,3.05685363,3817.3,3817.0,0.002]
[1760243883828,1.92,3817.1,3817.0,0.002]
[1760243884037,2.61978989,3817.1,3817.0,0.002]
[1760243884242,3.05698989,3817.1,3817.0,0.002]
[1760243884843,3.81665481,3817.1,3817.0,0.002]
[1760243885503,10.84131736,3817.1,3817.0,0.002]
[1760243886108,12.76131736,3817.1,3817.0,0.002]
[1760243890938,7.02266255,3817.0,3816.6,0.002]
[1760243891138,7.02266255,3817.0,3816.2,0.002]
[1760243891139,2.62033907,3816.3,3816.2,0.002]
[1760243891339,12.08705945,3816.3,3816.2,0.002]
[1760243891539,12.52225945,3816.3,3816.2,0.002]
[1760243898245,5.0643969,3816.3,3816.2,0.002]
[1760243898448,4.54033907,3816.3,3816.2,0.002]
[1760243898943,4.97553907,3816.3,3816.2,0.002]
[1760243900752,1.19486492,3817.1,3816.2,0.002]
[1760243901041,0.001,3817.8,3816.3,0.6336]
[1760243901042,0.1294,3816.7,3816.3,0.6336]
[1760243901213,0.1304,3817.1,3816.7,2.62005733]
[1760243901538,0.1304,3817.1,3816.7,3.08695733]
[1760243901744,0.001,3817.5,3817.1,0.6336]
[1760243901930,0.001,3817.5,3817.3,3.3836416]
[1760243902106,0.001,3817.5,3817.3,0.764]
[1760243902313,0.001,3817.5,3817.3,1.1983]
[1760243902758,0.001,3817.5,3817.4,3.68748401]
[1760243902966,0.001,3817.5,3817.4,4.3946038]
[1760243904660,0.001,3817.5,3817.4,3.9603038]
[1760243905146,0.001,3817.5,3817.4,4.3946038]
[1760243906969,0.001,3817.5,3817.4,3.9603038]
[1760243907326,0.001,3817.5,3817.3,0.1304]
[1760243908755,0.4383,3817.5,3816.7,0.58376277]
[1760243909083,0.4383,3817.5,3816.9,2.75032168]
[1760243909084,0.5687,3817.5,3816.9,2.75032168]
[1760243909830,0.001,3817.5,3817.0,1.1058]
[1760243910182,0.001,3817.5,3817.4,3.25318401]
[1760243910346,0.001,3817.5,3817.4,3.90073043]
[1760243910532,0.001,3817.5,3817.4,4.37293043]
[1760243912268,0.001,3817.5,3817.4,3.72538401]
[1760243913540,0.001,3817.5,3815.6,2.62276119]
[1760243913735,0.001,3817.5,3817.1,2.61978545]
[1760243913963,0.001,3817.5,3817.4,0.6336]
[1760243914346,0.001,3817.5,3817.1,2.61972575]
[1760243914554,0.001,3817.5,3817.1,0.6336]
[1760243916172,0.001,3817.5,3817.1,2.61977668]
[1760243916467,0.001,3817.5,3817.3,0.6336]
[1760243916966,0.001,3817.5,3817.4,3.72538401]
[1760243917467,0.001,3817.5,3817.4,3.25318401]
[1760243917655,0.001,3817.5,3817.4,0.6336]
[1760243919241,0.001,3817.5,3817.4,3.25318401]
[1760243919446,0.001,3817.5,3817.4,0.6336]
[1760243920248,0.4334,3817.5,3816.8,0.6336]
[1760243920443,0.23534,3817.4,3816.7,2.62006019]
[1760243920665,0.001,3817.5,3816.8,0.6336]
[1760243920976,0.001,3817.5,3816.9,0.4722]
[1760243921281,0.001,3817.5,3817.0,2.61984873]
[1760243921948,0.001,3817.5,3817.1,2.61976817]
[1760243922979,0.001,3817.5,3817.2,0.453]
[1760243923282,0.001,3817.5,3817.4,3.25318401]
[1760243923490,0.001,3817.5,3817.4,3.88577035]
[1760243923676,0.001,3817.5,3817.4,4.01617035]
[1760243923853,0.001,3817.5,3817.4,4.46917035]
[1760243924253,0.001,3817.5,3817.4,3.38358401]
[1760243926888,0.001,3817.5,3817.4,3.83658401]
[1760243927965,0.001,3817.5,3817.4,0.1304]
[1760243928350,0.001,3817.5,3817.4,0.764]
[1760243929288,0.001,3817.5,3817.4,3.83658401]
[1760243929597,0.001,3817.5,3817.4,4.22024241]
[1760243930676,0.001,3817.5,3817.4,0.1304]
[1760243931292,0.001,3817.5,3817.2,0.1304]
[1760243934302,0.001,3817.5,3817.2,2.75006474]
[1760243934888,0.001,3817.5,3817.4,2.61958401]
[1760243935056,0.001,3817.5,3817.4,3.06918401]
[1760243935657,0.001,3817.5,3817.3,0.764]
[1760243935857,0.001,3817.5,3817.3,3.38363097]
[1760243936058,0.001,3817.5,3817.4,3.70278401]
[1760243942207,0.001,3817.5,3817.4,4.34807053]
[1760243942495,0.001,3817.5,3817.4,3.89847053]
[1760243943488,0.001,3817.5,3817.4,4.34807053]
[1760243943893,0.001,3817.5,3817.4,0.6336]
[1760243944079,0.001,3817.5,3817.4,3.70278401]
[1760243948018,0.001,3817.5,3817.4,2.61958401]
[1760243948163,0.001,3817.5,3817.4,3.06918401]
[1760243948497,0.001,3817.5,3817.4,2.61958401]
[1760243948669,0.001,3817.5,3817.4,3.25318401]
[1760243948864,0.001,3817.5,3817.4,3.70278401]
[1760243949379,0.001,3817.5,3817.4,3.25318401]
[1760243951404,0.001,3817.5,3817.4,0.6336]
[1760243951907,0.001,3817.5,3817.0,0.002]
[1760243951908,0.438,3817.5,3817.0,0.002]
[1760243952106,0.2358,3817.4,3817.0,2.75224691]
[1760243952316,0.2358,3817.4,3817.1,0.6336]
[1760243952615,7.15306255,3817.3,3817.0,0.002]
[1760243952821,1.04463873,3817.2,3817.0,0.002]
[1760243953023,6.02141692,3817.2,3817.0,0.002]
[1760243953326,0.437,3817.1,3817.0,0.002]
[1760243953505,2.96463873,3817.2,3817.0,0.002]
[1760243953878,0.437,3817.1,3817.0,0.002]
[1760243954111,1.51605013,3817.1,3817.0,0.002]
[1760243954275,4.13584002,3817.1,3817.0,0.002]
[1760243954478,1.07905013,3817.1,3817.0,0.002]
[1760243954688,1.51605013,3817.1,3817.0,0.002]
[1760243954888,6.05584002,3817.1,3817.0,0.002]
[1760243955126,12.64150257,3817.1,3817.0,0.002]
[1760243955429,13.07850257,3817.1,3817.0,0.002]
[1760243959820,10.02171268,3817.1,3817.0,0.002]
[1760243959993,10.45871268,3817.1,3817.0,0.002]
[1760243961025,13.07850257,3817.1,3817.0,0.002]
[1760243966713,4.54006445,3816.7,3816.6,0.002]
[1760243966910,24.54837126,3816.7,3816.6,0.002]
[1760243967149,24.98537126,3816.7,3816.6,0.002]
[1760243969015,24.98417126,3816.7,3816.6,0.002]
[1760243971968,9.63707028,3816.2,3816.1,0.002]
[1760243972177,25.50642157,3816.2,3816.1,0.002]
[1760243972370,25.94342157,3816.2,3816.1,0.002]
[1760243974871,12.95777731,3816.2,3816.1,0.002]
[1760243975249,4.54061374,3815.9,3814.5,0.6336]
[1760243975452,13.30712226,3815.9,3814.5,0.6336]
[1760243975650,13.74412226,3815.9,3814.5,0.6336]
[1760243975864,13.51844226,3815.9,3814.5,0.6336]
[1760243976069,13.51844226,3815.9,3814.5,3.25514855]
[1760243976448,13.51844226,3815.9,3814.7,0.6336]
[1760243977747,13.51844226,3815.9,3814.9,0.6336]
[1760243977949,13.51844226,3815.9,3814.6,0.4741]
[1760243978252,13.51844226,3815.9,3815.0,0.6336]
[1760243979251,13.51844226,3815.9,3814.7,0.6336]
[1760243979769,13.51844226,3815.9,3814.7,3.25501529]
[1760243979970,13.51844226,3815.9,3814.7,0.6336]
[1760243980193,13.51844226,3815.9,3814.7,3.25503375]
[1760243981165,13.51844226,3815.9,3815.1,0.6336]
[1760243981371,11.76859629,3815.9,3815.1,0.6336]
[1760243981762,11.76859629,3815.9,3814.9,3.25488431]
[1760243982486,11.76859629,3815.9,3814.9,0.6336]
[1760243982989,11.76859629,3815.9,3814.8,0.6336]
[1760243984081,11.76859629,3815.9,3814.7,0.6336]
[1760243984391,24.75524055,3815.9,3814.4,0.76874229]
[1760243984592,24.75524055,3815.9,3815.4,0.002]
[1760243990733,4.5407511,3815.7,3815.4,0.002]
[1760243990895,4.54088848,3815.5,3815.4,0.002]
[1760243991257,6.43921869,3815.5,3815.4,0.002]
[1760243995523,13.45388124,3815.5,3815.4,0.002]
[1760243996732,11.99255103,3815.5,3815.4,0.002]
[1760243998427,8.93466255,3815.5,3815.4,0.002]
[1760243998932,2.357,3815.5,3815.4,0.002]
[1760244000346,4.97788848,3815.5,3815.4,0.002]
[1760244000635,1.92,3815.5,3815.4,0.002]
[1760244000832,2.357,3815.5,3815.4,0.002]
[1760244001246,1.92,3815.5,3815.4,0.002]
[1760244001542,1.92,3815.5,3815.4,2.62295717]
[1760244001701,0.001,3815.9,3815.7,0.6336]
[1760244001906,0.438,3815.8,3815.7,0.6336]
[1760244002137,0.438,3815.8,3815.4,0.002]
[1760244002342,0.438,3815.8,3815.4,0.6356]
[1760244003136,0.438,3815.8,3815.4,0.002]
[1760244003346,0.437,3815.7,3815.4,0.002]
[1760244003520,3.05780346,3815.7,3815.4,0.002]
[1760244003903,2.62083789,3815.6,3815.4,0.002]
[1760244004110,8.93466255,3815.5,3815.4,0.002]
[1760244004310,9.37166255,3815.5,3815.4,0.002]
[1760244004517,11.99255103,3815.5,3815.4,0.002]
[1760244004918,9.37166255,3815.5,3815.4,0.002]
[1760244005148,11.99255103,3815.5,3815.4,0.002]
[1760244006010,14.7175323,3815.5,3815.4,0.002]
[1760244006720,4.54116327,3815.1,3815.0,1e-08]
[1760244006914,24.54147008,3815.1,3815.0,1e-08]
[1760244007139,24.97847008,3815.1,3815.0,1e-08]
[1760244007326,27.70345135,3815.1,3815.0,1e-08]
[1760244007643,27.30582777,3815.1,3815.0,1e-08]
[1760244010653,2.62246604,3813.3,3812.5,0.2072]
[1760244010815,2.62239753,3813.4,3812.5,2.83008472]
[1760244011017,0.2213,3814.1,3812.6,0.76898847]
[1760244011272,12.58802068,3814.9,3813.0,2.62254674]
[1760244011273,0.1304,3813.4,3813.0,2.62254674]
[1760244011454,0.1304,3813.4,3813.2,0.6336]
[1760244011768,0.1304,3813.4,3812.9,0.6336]
[1760244011971,0.1304,3813.4,3813.0,0.6336]
[1760244012169,0.1304,3813.4,3813.2,3.25604115]
[1760244012371,0.1304,3813.4,3813.3,0.4418]
[1760244012679,0.1304,3813.4,3813.3,1.0754]
[1760244012968,0.1304,3813.4,3813.3,0.6336]
[1760244013521,0.1304,3813.4,3813.3,1.0754]
[1760244013719,0.1304,3813.4,3813.3,0.6336]
[1760244014156,0.1304,3813.4,3813.3,3.25600054]
[1760244014357,0.1304,3813.4,3813.3,0.6336]
[1760244014764,1.92,3813.9,3813.4,0.6336]
[1760244014972,0.1304,3813.8,3813.7,0.6336]
[1760244015258,0.1304,3813.8,3813.6,0.6336]
[1760244015957,0.1304,3813.8,3813.6,3.25578163]
[1760244016260,0.1304,3813.8,3813.6,3.69758163]
[1760244018333,0.1304,3813.8,3813.7,3.69752549]
[1760244018539,7.01466255,3814.0,3813.9,3.25558799]
[1760244018750,7.01466255,3814.0,3813.9,3.69738799]
[1760244018932,7.01466255,3814.0,3813.9,1.0754]
[1760244019142,0.1304,3814.1,3813.9,0.6336]
[1760244019362,0.5169,3814.1,3813.7,0.6336]
[1760244019538,0.1304,3813.8,3813.0,0.1304]
[1760244019857,0.1304,3813.2,3813.0,0.6336]
[1760244020057,0.1304,3813.2,3812.9,2.62266243]
[1760244020654,0.1304,3813.2,3813.0,0.6336]
[1760244021229,0.1304,3813.2,3813.1,0.6336]
[1760244022055,0.1304,3813.2,3813.1,3.25613809]
[1760244022867,0.1304,3813.2,3813.1,4.29481605]
[1760244023073,0.1304,3813.6,3813.5,0.6336]
[1760244024172,0.1304,3813.6,3813.2,3.256005]
[1760244024589,7.01466255,3813.9,3812.8,0.002]
[1760244024738,0.3865,3813.5,3812.8,0.6356]
[1760244025046,0.3865,3813.5,3812.8,3.2583174]
[1760244025670,0.3865,3813.5,3812.8,0.002]
[1760244025883,0.3865,3813.5,3812.9,0.6336]
[1760244026070,0.3865,3813.5,3812.9,3.25626763]
[1760244026394,0.3865,3813.5,3813.1,0.6336]
[1760244026575,4.54205996,3813.8,3813.0,2.62260422]
[1760244026752,0.3865,3813.7,3813.1,0.6336]
[1760244027890,0.3865,3813.7,3812.8,0.4526]
[1760244028183,0.3865,3813.7,3812.9,0.6336]
[1760244028391,0.3865,3813.6,3812.9,0.6336]
[1760244028591,0.3865,3813.5,3812.9,0.6336]
[1760244028767,1.92,3813.5,3812.8,0.002]
[1760244028972,0.3865,3813.4,3812.8,0.002]
[1760244029670,7.01466255,3813.3,3812.9,0.6336]
[1760244029875,0.3865,3813.2,3812.8,0.6356]
[1760244030193,0.3865,3813.2,3812.8,0.002]
[1760244030683,0.3865,3813.2,3812.9,2.62267186]
[1760244031392,7.01466255,3813.3,3812.9,2.62267186]
[1760244031393,0.3865,3813.1,3812.9,0.6336]
[1760244031592,0.3865,3813.0,3812.8,0.002]
[1760244031795,1.92,3812.9,3812.8,0.002]
[1760244032397,0.74011626,3813.1,3812.8,0.002]
[1760244032593,0.3865,3812.9,3812.8,0.002]
[1760244034065,3.00917565,3812.9,3812.8,0.002]
[1760244034321,4.92917565,3812.9,3812.8,0.002]
[1760244038599,2.3065,3812.9,3812.8,0.002]
[1760244039000,4.92917565,3812.9,3812.8,0.002]
[1760244039205,5.68434038,3812.9,3812.8,0.002]
[1760244040494,3.06166473,3812.9,3812.8,0.002]
[1760244041221,0.3865,3813.4,3812.8,0.002]
[1760244041370,1.92,3813.2,3812.8,0.002]
[1760244041573,0.3865,3813.3,3812.8,0.002]
[1760244041794,0.3865,3813.1,3812.8,0.002]
[1760244042302,0.3865,3813.5,3812.8,0.002]
[1760244042502,0.3865,3813.1,3812.8,0.002]
[1760244042910,0.3865,3813.0,3812.8,0.002]
[1760244043420,2.62247382,3813.2,3812.8,0.002]
[1760244043624,0.3865,3812.9,3812.8,0.002]
[1760244044023,4.92917565,3812.9,3812.8,0.002]
[1760244046108,3.00917565,3812.9,3812.8,0.002]
[1760244046692,0.3865,3812.9,3812.8,0.002]
[1760244047234,0.001,3814.4,3812.8,0.002]
[1760244047536,0.3865,3814.3,3813.2,0.6336]
[1760244047694,2.62199585,3813.9,3813.2,0.6336]
[1760244047899,0.3865,3814.2,3813.2,0.6336]
[1760244048100,0.1304,3813.9,3813.5,0.6336]
[1760244048336,0.1304,3813.9,3813.7,3.25572429]
[1760244048516,0.1304,3813.9,3813.8,0.6336]
[1760244049708,0.1304,3814.1,3813.9,0.6336]
[1760244050124,0.1304,3814.1,3813.8,0.6336]
[1760244050434,0.1304,3814.1,3813.8,3.25564638]
[1760244051178,0.001,3814.4,3813.6,0.6336]
[1760244051179,4.54271032,3814.4,3813.6,0.6336]
[1760244051484,0.1304,3813.6,3813.0,0.6336]
[1760244051688,0.1304,3813.6,3813.3,0.6336]
[1760244051982,0.1304,3813.6,3813.5,0.6336]
[1760244052280,0.1304,3813.6,3813.5,3.25586301]
[1760244052437,0.1304,3813.6,3813.5,3.71056301]
[1760244052845,0.1304,3813.9,3813.8,0.6336]
[1760244053045,0.1304,3813.9,3813.8,3.25565674]
[1760244053246,0.1304,3813.9,3813.8,3.71035674]
[1760244055278,0.1304,3813.9,3813.8,0.6336]
[1760244055673,0.3865,3813.9,3812.8,0.4567]
[1760244055898,1.92,3814.2,3813.3,2.62233645]
[1760244056078,0.45427333,3814.1,3813.4,2.62233044]
[1760244056278,0.45427333,3814.1,3813.5,0.6336]
[1760244056502,4.9961399,3814.1,3813.3,2.62239725]
[1760244056690,4.9961399,3814.1,3813.4,0.6336]
[1760244057195,2.62266054,3814.4,3813.4,0.4547]
[1760244057196,0.001,3814.4,3813.4,0.4547]
[1760244057390,1.921,3814.4,3813.7,0.6336]
[1760244057586,1.921,3814.4,3813.8,0.002]
[1760244057788,0.45526193,3814.4,3813.9,2.62198799]
[1760244057987,0.001,3814.4,3814.0,3.71016434]
[1760244058188,0.001,3814.4,3814.0,3.25546434]
[1760244058565,0.001,3814.4,3814.0,0.6336]
[1760244059170,0.001,3814.4,3813.9,0.6336]
[1760244059591,0.3875,3814.4,3813.9,0.6336]
[1760244060095,0.3875,3814.4,3814.0,0.6336]
[1760244060507,0.3875,3814.4,3813.9,0.6336]
[1760244061207,0.3875,3814.4,3813.8,0.002]
[1760244061208,0.3865,3814.3,3813.8,0.002]
[1760244061393,4.54198799,3813.9,3813.8,0.002]
[1760244061593,1.92,3813.9,3813.8,0.002]
[1760244061899,2.3065,3813.9,3813.8,0.002]
[1760244062320,4.92848799,3813.9,3813.8,0.002]
[1760244062613,3.76299756,3813.9,3813.8,0.002]
[1760244062795,3.37649756,3813.9,3813.8,0.002]
[1760244062976,1.92,3813.9,3813.8,0.002]
[1760244065208,2.3065,3813.9,3813.8,0.002]
[1760244065416,4.92848799,3813.9,3813.8,0.002]
[1760244067507,17.95406741,3813.9,3813.8,0.002]
[1760244067785,20.01166206,3813.9,3813.8,0.002]
[1760244068719,2.62295625,3812.5,3811.5,0.1304]
[1760244068881,0.1304,3812.0,3811.5,0.1304]
[1760244069080,0.1304,3812.0,3811.6,2.6235608]
[1760244069282,0.1304,3812.0,3811.2,0.1304]
[1760244069482,0.1304,3811.7,3811.2,2.75423816]
[1760244069703,0.1304,3811.7,3811.3,3.25735481]
[1760244070140,0.1304,3811.7,3811.3,2.62375481]
[1760244070341,0.1304,3811.7,3810.5,0.4547]
[1760244070342,0.3848,3811.6,3810.5,0.4547]
[1760244070553,0.1304,3811.7,3810.9,0.1312]
[1760244070851,0.1304,3811.7,3811.0,0.6336]
[1760244071009,0.1304,3811.7,3811.1,2.62391435]
[1760244071211,0.1304,3811.7,3811.3,0.6336]
[1760244071751,0.1304,3811.7,3810.9,0.1312]
[1760244072046,0.1304,3811.7,3810.0,0.1464]
[1760244072047,0.1304,3811.4,3810.0,0.1464]
[1760244072204,0.1312,3811.0,3810.5,0.78933555]
[1760244072411,0.5154,3811.0,3810.6,3.25783981]
[1760244072841,0.5154,3811.0,3810.1,0.78940201]
[1760244072842,0.3842,3811.0,3810.1,0.78940201]
[1760244073113,0.1312,3810.7,3810.5,2.6242705]
[1760244073314,0.1312,3810.7,3810.1,0.1597702]
[1760244073720,0.1312,3810.7,3810.2,0.6336]
[1760244074043,0.1312,3810.7,3810.3,2.62446526]
[1760244074429,0.1312,3810.7,3810.5,0.6336]
[1760244074644,0.1312,3810.7,3810.5,3.25791982]
[1760244074839,0.1312,3810.7,3810.0,1.06707264]
[1760244074840,0.1312,3810.7,3810.6,3.25785864]
[1760244075146,0.1312,3810.7,3810.6,4.0383445]
[1760244075359,1.92,3811.4,3810.0,0.78947264]
[1760244075517,0.3842,3811.0,3810.1,0.6336]
[1760244075718,0.3842,3811.0,3810.4,0.6336]
[1760244075919,0.3842,3811.0,3810.4,3.25798797]
[1760244076160,0.3842,3811.0,3810.4,0.6336]
[1760244076161,7.01466255,3810.9,3810.4,0.6336]
[1760244076359,7.01466255,3810.9,3810.5,0.6336]
[1760244076731,7.01466255,3810.9,3810.7,3.25777101]
[1760244076934,7.01466255,3810.9,3810.7,1.0883]
[1760244077146,7.01466255,3810.9,3810.8,3.25772091]
[1760244077763,7.01466255,3810.9,3810.8,3.71242091]
[1760244079556,7.01466255,3810.9,3810.8,0.6336]
[1760244080367,7.01466255,3810.9,3810.2,0.4547]
[1760244080664,7.01466255,3810.9,3810.2,2.62453277]
[1760244080880,7.01466255,3810.9,3810.4,2.62433535]
[1760244081169,7.01466255,3810.9,3810.5,0.6336]
[1760244081535,7.01466255,3810.9,3810.8,2.62412091]
[1760244082169,7.01466255,3810.9,3810.7,2.62418646]
[1760244082573,7.01466255,3810.9,3810.8,2.62412091]
[1760244082769,7.01466255,3810.9,3810.8,3.25772091]
[1760244083073,7.01466255,3810.9,3810.8,4.34327453]
[1760244083269,7.01466255,3810.9,3810.8,3.90927453]
[1760244083474,7.01466255,3810.9,3810.8,3.25772091]
[1760244083669,7.01466255,3810.9,3810.8,0.6336]
[1760244084180,7.01466255,3810.9,3810.8,3.25772091]
[1760244084675,7.01466255,3810.9,3810.8,3.69172091]
[1760244084863,7.01466255,3810.9,3810.8,3.25772091]
[1760244085066,7.01466255,3810.9,3810.8,3.69172091]
[1760244085574,7.01466255,3810.9,3810.8,3.25772091]
[1760244085775,7.01466255,3810.9,3810.8,3.69172091]
[1760244085949,7.01466255,3810.9,3810.8,4.32331453]
[1760244086580,2.62309149,3812.3,3811.6,0.6336]
[1760244086581,7.01466255,3812.3,3811.6,0.6336]
[1760244086780,1.92,3812.2,3811.6,0.6336]
[1760244086980,7.01466255,3812.3,3811.5,0.434]
[1760244087274,0.1304,3811.8,3811.7,3.25710132]
[1760244087684,1.92,3812.2,3811.8,0.6336]
[1760244087857,2.85168625,3812.2,3811.8,0.6336]
[1760244088056,2.85168625,3812.2,3810.7,2.62415668]
[1760244088057,2.85168625,3812.2,3811.6,0.6336]
[1760244088411,1.92,3812.2,3811.8,0.6336]
[1760244088945,1.92,3812.2,3811.9,0.6336]
[1760244089157,0.3822,3813.0,3812.1,0.6336]
[1760244089473,0.3822,3812.9,3812.0,0.6336]
[1760244089643,0.3822,3812.8,3812.0,0.6336]
[1760244089841,0.5992,3813.2,3812.1,0.778]
[1760244090046,0.5992,3813.2,3812.5,0.6336]
[1760244090047,0.3822,3813.2,3812.5,0.6336]
[1760244090252,0.3822,3813.2,3812.5,2.62289376]
[1760244090479,0.3822,3813.2,3812.6,0.6336]
[1760244090790,0.89635408,3813.2,3812.6,3.25644645]
[1760244090944,0.3822,3813.2,3812.6,3.25644645]
[1760244091148,0.217,3813.4,3812.7,0.6336]
[1760244091663,1.92,3813.3,3812.7,0.6336]
[1760244092480,0.3822,3813.2,3812.6,0.6336]
[1760244093954,2.62253909,3813.1,3812.5,0.6336]
[1760244094160,0.3822,3813.0,3812.5,0.6336]
[1760244094460,2.3022,3812.9,3812.2,0.6336]
[1760244094678,0.3822,3812.8,3812.2,0.6336]
[1760244095603,0.3822,3812.7,3811.7,2.62346679]
[1760244095806,1.92,3812.5,3811.7,2.62346679]
[1760244096008,1.92,3812.5,3811.8,0.6336]
[1760244096204,1.92,3812.5,3811.7,2.62346679]
[1760244096514,1.92,3812.3,3810.8,0.434]
[1760244096727,1.92,3812.3,3811.1,2.62386188]
[1760244096872,1.92,3811.9,3810.8,0.78924002]
[1760244097078,2.3022,3811.9,3811.2,0.6336]
[1760244097386,1.92,3811.5,3810.4,0.78924002]
[1760244097586,2.62364414,3811.5,3810.6,2.62425864]
[1760244097907,0.49255312,3811.9,3810.6,0.434]
[1760244098092,0.49255312,3811.9,3810.8,0.6336]
[1760244098093,0.1304,3811.1,3810.8,0.6336]
[1760244098301,0.1304,3811.1,3810.8,0.434]
[1760244098506,0.1304,3811.1,3810.7,2.62418978]
[1760244098681,0.1304,3811.1,3810.6,0.6336]
[1760244098875,0.1304,3811.1,3810.6,3.25784996]
[1760244099111,0.3822,3811.1,3810.5,2.62629062]
[1760244099293,0.1312,3810.7,3810.5,0.002]
[1760244099887,0.1312,3810.7,3810.5,0.6356]
[1760244100102,0.1312,3810.7,3810.5,3.25992515]
[1760244100419,0.1312,3810.7,3810.5,0.6356]
[1760244101211,0.1312,3810.7,3810.6,0.6336]
[1760244101515,0.1312,3810.7,3810.5,0.6356]
[1760244102086,0.1312,3810.7,3810.5,0.002]
[1760244102910,4.92645864,3810.6,3810.5,0.002]
[1760244103214,5.6815166,3810.6,3810.5,0.002]
[1760244103779,18.70709602,3810.6,3810.5,0.002]
[1760244104191,17.51283738,3810.6,3808.0,0.2158]
[1760244104507,2.137,3810.5,3808.1,1.22365759]
[1760244104716,0.4064,3810.4,3809.2,2.62518558]
[1760244105035,0.3298458,3810.3,3809.3,0.6336]
[1760244105233,1.92,3810.3,3809.3,0.6336]
[1760244105395,0.4064,3810.4,3809.6,0.6336]
[1760244105598,1.92,3810.7,3809.8,0.6336]
[1760244105788,0.2203,3810.8,3809.5,0.6336]
[1760244105987,1.92,3810.5,3809.8,0.6336]
[1760244106714,3.02744921,3810.7,3809.8,0.6336]
[1760244106915,0.51677492,3810.6,3809.8,0.6336]
[1760244107114,1.92,3810.0,3808.0,0.2158]
[1760244107335,1.92,3809.6,3808.3,2.62581847]
[1760244107508,1.92,3809.6,3808.4,0.4692]
[1760244107710,1.92,3809.6,3808.9,0.6336]
[1760244107908,0.4032,3809.9,3808.9,0.6336]
[1760244108205,0.23232,3809.9,3808.9,1.1028]
[1760244108406,1.92,3809.9,3808.9,1.1028]
[1760244108624,2.62467796,3810.0,3808.9,1.1028]
[1760244108625,3.02780904,3810.1,3809.1,0.6336]
[1760244108908,0.4032,3810.1,3809.1,0.6336]
[1760244109426,0.4032,3810.1,3809.2,0.6336]
[1760244109730,2.62433489,3810.5,3809.5,3.25859911]
[1760244109935,2.62433489,3810.5,3809.7,0.6336]
[1760244109936,1.92,3810.4,3809.7,0.6336]
[1760244110341,1.92,3810.4,3809.5,0.6336]
[1760244110503,2.3232,3810.6,3809.5,0.6336]
[1760244110704,2.62412362,3810.8,3810.1,0.6336]
[1760244110951,1.92,3810.8,3810.0,0.6336]
[1760244111139,3.27061117,3810.7,3810.0,0.6336]
[1760244111463,1.92,3810.6,3808.2,0.78956614]
[1760244111636,1.92,3810.1,3808.4,0.4692]
[1760244111835,1.92,3809.8,3807.9,2.62610772]
[1760244112143,2.62536346,3809.0,3808.0,2.84178154]
[1760244112440,15.65032545,3809.9,3808.1,0.6336]
[1760244112441,3.07179634,3809.1,3808.1,0.6336]
[1760244112641,0.1312,3808.4,3807.9,3.25971455]
[1760244112840,0.1312,3808.4,3808.0,2.62604828]
[1760244113031,0.1312,3808.4,3808.0,3.09124828]
[1760244113341,0.1312,3808.4,3808.0,0.4652]
[1760244113543,0.1312,3808.4,3808.0,3.25965037]
[1760244113836,0.1312,3808.4,3808.2,0.6336]
[1760244114337,0.1312,3808.4,3808.3,3.72464355]
[1760244115138,0.1312,3808.4,3808.3,3.25944355]